bitfinex-derivatives/quotes_ETHF0:USTF0_20250329
["timestamp","ask_amount","ask_price","bid_price","bid_amount"]
[1743289723571,2.5908,1818.7,1818.6,1.4784]
[1743289730186,2.5908,1818.7,1818.6,2.57856]
[1743289730579,2.5908,1818.7,1818.6,1.4784]
[1743289730779,2.5908,1818.7,1818.6,2.57856]
[1743289730979,2.5908,1818.7,1818.6,1.4784]
[1743289731279,1.4907,1818.7,1818.6,2.57856]
[1743289731581,2.5908,1818.7,1818.6,2.57856]
[1743289733479,1.3884,1818.8,1818.7,1.1001]
[1743289733680,0.7064,1818.8,1818.7,6.067]
[1743289734586,0.7064,1818.8,1818.7,6.7633]
[1743289735676,1.80644,1818.8,1818.7,6.7633]
[1743289736283,0.6966,1819.0,1818.9,1.09998]
[1743289736481,23.39423406,1819.1,1819.0,1.09992]
[1743289736785,19.72130102,1819.1,1819.0,7.60762]
[1743289737382,19.72130102,1819.1,1819.0,10.10762]
[1743289737793,17.45650102,1819.1,1819.0,10.10762]
[1743289738791,1.3905,1819.5,1819.4,1.09968]
[1743289738995,1.3905,1819.5,1819.4,4.61468]
[1743289740288,1.3905,1819.5,1819.4,5.35818]
[1743289740987,1.3905,1819.5,1819.4,6.74828]
[1743289741387,1.3905,1819.5,1819.4,3.514]
[1743289741694,2.49012,1819.5,1819.4,3.514]
[1743289742598,2.49012,1819.5,1819.4,4.61368]
[1743289742793,1.3905,1819.5,1819.4,4.61368]
[1743289742983,1.3905,1819.5,1819.4,6.07388]
[1743289743189,1.3905,1819.5,1819.4,7.54188]
[1743289744591,1.84739,1819.7,1819.6,1.09956]
[1743289745094,1.84739,1819.7,1819.5,2.48497]
[1743289745095,2.54659,1819.7,1819.5,2.48497]
[1743289745497,1.09956,1819.6,1819.5,2.48497]
[1743289745883,2.58766,1819.6,1819.5,2.48497]
[1743289746690,1.4881,1819.6,1819.5,2.48497]
[1743289749393,2.58766,1819.6,1819.5,2.48497]
[1743289749595,1.4881,1819.6,1819.5,2.48497]
[1743289750104,2.58766,1819.6,1819.5,2.48497]
[1743289750699,2.58766,1819.6,1819.5,1.3854]
[1743289751602,2.58766,1819.6,1819.5,2.48502]
[1743289751802,2.58766,1819.6,1819.5,4.61362]
[1743289753807,2.58766,1819.6,1819.5,3.514]
[1743289754103,1.09968,1819.4,1819.3,3.21606674]
[1743289754303,1.09968,1819.4,1819.3,6.72906674]
[1743289754501,1.09968,1819.4,1819.3,3.21606674]
[1743289754707,2.58948,1819.4,1819.3,6.72906674]
[1743289755203,2.58948,1819.4,1819.3,3.21606674]
[1743289755901,2.58948,1819.4,1819.3,4.31580674]
[1743289756099,2.58948,1819.4,1819.3,3.21606674]
[1743289757903,2.58948,1819.4,1819.3,4.31580674]
[1743289758103,2.58948,1819.4,1819.3,3.21606674]
[1743289758707,2.58948,1819.4,1819.3,1.10800674]
[1743289759209,2.58948,1819.4,1819.3,0.00826674]
[1743289762906,2.58948,1819.4,1819.3,1.10800674]
[1743289763207,2.58948,1819.4,1819.3,0.00826674]
[1743289765404,2.58948,1819.4,1819.3,1.10800674]
[1743289766109,0.7364,1819.4,1819.3,1.10800674]
[1743289766299,0.7364,1819.4,1819.3,2.58540674]
[1743289766703,2.1847,1819.4,1819.3,2.58540674]
[1743289767104,2.1847,1819.4,1819.3,3.27590674]
[1743289768409,1.4483,1819.4,1819.3,3.27590674]
[1743289768611,0.6876,1819.6,1819.5,1.09962]
[1743289768807,0.6876,1819.6,1819.5,4.61262]
[1743289769311,2.1315,1819.6,1819.5,5.35812]
[1743289769503,3.23106,1819.6,1819.5,5.35812]
[1743289772802,2.1315,1819.6,1819.5,5.35812]
[1743289773310,3.23106,1819.6,1819.5,5.35812]
[1743289774512,3.23106,1819.6,1819.5,4.2585]
[1743289776018,3.23106,1819.6,1819.5,3.513]
[1743289776311,3.23106,1819.6,1819.3,3.90656674]
[1743289776312,1.09968,1819.4,1819.3,0.00826674]
[1743289776909,1.79458,1819.4,1819.3,0.00826674]
[1743289779213,5.00238,1819.4,1819.3,0.00826674]
[1743289779811,1.09986,1819.1,1819.0,3.513]
[1743289780920,1.81356,1819.1,1819.0,3.513]
[1743289782012,1.81356,1819.1,1818.9,5.3248438]
[1743289782013,1.09992,1819.0,1818.9,5.3248438]
[1743289782212,3.35612,1819.0,1818.9,8.8378438]
[1743289782417,3.35612,1819.0,1818.9,5.6300438]
[1743289784320,3.35612,1819.0,1818.9,3.5212438]
[1743289785720,3.35612,1819.0,1818.9,0.0082438]
[1743289785916,3.35612,1819.0,1818.9,3.5212438]
[1743289786915,7.50605,1819.0,1818.6,3.2078]
[1743289787120,7.50605,1819.0,1818.4,5.6431]
[1743289787121,1.10022,1818.5,1818.4,5.6431]
[1743289789417,1.10022,1818.5,1818.4,6.74338]
[1743289789820,2.4804,1818.6,1818.5,1.10022]
[1743289790122,2.4804,1818.6,1818.5,2.55972]
[1743289790322,2.4804,1818.6,1818.5,1.4595]
[1743289791117,2.4804,1818.6,1818.5,4.9735]
[1743289791326,2.4804,1818.6,1818.5,3.514]
[1743289800323,2.4804,1818.6,1818.5,4.9842]
[1743289801421,3.2078,1818.7,1818.5,2.2203]
[1743289801629,1.1001,1818.7,1818.6,5.6739]
[1743289801828,2.48409,1818.8,1818.6,6.77406]
[1743289802028,2.48409,1818.8,1818.7,1.4702]
[1743289802430,2.48409,1818.8,1818.7,2.5703]
[1743289802828,2.48404,1818.8,1818.7,2.5703]
[1743289803030,2.48404,1818.8,1818.7,1.4702]
[1743289804936,2.48404,1818.8,1818.7,2.5703]
[1743289805232,2.48404,1818.8,1818.7,1.4702]
[1743289810234,1.10016,1818.6,1818.5,0.7501]
[1743289810538,2.7466,1818.7,1818.6,1.10016]
[1743289810834,2.7466,1818.7,1818.5,5.6819]
[1743289811131,1.10002,1818.9,1818.7,1.10005]
[1743289811339,1.10002,1818.9,1818.8,5.6819]
[1743289812126,0.00819025,1819.2,1818.8,5.6819]
[1743289812332,1.09988,1819.1,1818.9,4.6633]
[1743289812535,1.09988,1819.1,1819.0,1.4555]
[1743289813340,2.52912025,1819.2,1819.0,2.55538]
[1743289813531,2.52912025,1819.2,1819.1,3.514]
[1743289813732,2.52912025,1819.2,1819.1,5.7001]
[1743289814841,1.84272025,1819.2,1819.1,5.7001]
[1743289815546,0.74289025,1819.2,1819.1,6.79996]
[1743289815732,0.00819025,1819.2,1819.1,6.79996]
[1743289815933,0.00819025,1819.2,1819.1,10.55816]
[1743289819543,0.7212,1819.6,1819.4,1.09967]
[1743289819743,1.82076,1819.6,1819.5,3.514]
[1743289819937,1.82076,1819.6,1819.5,5.0113]
[1743289820140,1.82076,1819.6,1819.5,5.7305]
[1743289821048,1.09962,1819.5,1819.4,0.0082438]
[1743289821339,1.0998,1819.2,1819.1,3.514]
[1743289823242,1.09986,1819.1,1819.0,6.0094638]
[1743289823846,1.09983,1819.2,1819.0,6.0094138]
[1743289824039,1.09983,1819.2,1819.1,2.1474]
[1743289826743,2.55963,1819.2,1819.1,2.1474]
[1743289829647,1.4598,1819.2,1819.1,3.24726]
[1743289829849,3.9442,1819.4,1819.3,1.09974]
[1743289830041,5.04388,1819.4,1819.3,4.61374]
[1743289831148,5.04388,1819.4,1819.3,3.514]
[1743289833552,1.83608,1819.4,1819.3,3.514]
[1743289834053,0.7364,1819.4,1819.3,6.00364]
[1743289834246,1.3712,1819.5,1819.4,1.09968]
[1743289834444,1.3712,1819.5,1819.4,3.18178]
[1743289834641,1.3712,1819.5,1819.4,3.88468]
[1743289835745,2.47082,1819.5,1819.4,2.785]
[1743289835946,1.3712,1819.5,1819.4,3.88468]
[1743289847762,2.47082,1819.5,1819.4,3.88468]
[1743289847960,1.3712,1819.5,1819.4,3.88468]
[1743289848554,2.47082,1819.5,1819.4,3.88468]
[1743289848762,2.47082,1819.5,1819.4,3.18178]
[1743289849257,1.09968,1819.4,1819.3,3.7582]
[1743289849558,2.47218,1819.4,1819.3,7.8205]
[1743289849950,2.47218,1819.4,1819.3,4.6127]
[1743289850155,2.47218,1819.4,1819.3,5.9903]
[1743289850349,2.47218,1819.4,1819.2,0.5504]
[1743289850350,1.09974,1819.3,1819.2,0.5504]
[1743289850560,1.0998,1819.2,1819.1,6.7208]
[1743289851058,2.5921,1819.2,1819.1,6.7208]
[1743289851361,2.5921,1819.2,1819.1,8.1154]
[1743289851554,2.5921,1819.2,1819.1,9.21526]
[1743289851754,2.5921,1819.2,1819.1,8.1154]
[1743289852562,2.5921,1819.2,1819.1,9.21526]
[1743289853551,2.5921,1819.2,1819.1,8.1154]
[1743289856363,2.5921,1819.2,1819.1,4.9076]
[1743289856763,2.5921,1819.2,1819.1,8.1154]
[1743289859872,2.5921,1819.2,1819.1,9.21526]
[1743289860466,2.5921,1819.2,1819.1,8.1154]
[1743289863573,2.5921,1819.2,1819.1,4.9076]
[1743289865766,1.4923,1819.2,1819.1,6.00746]
[1743289865973,2.5921,1819.2,1819.1,6.00746]
[1743289866165,1.4923,1819.2,1819.1,6.00746]
[1743289866361,2.5921,1819.2,1819.1,6.00746]
[1743289866768,3.2078,1819.6,1819.4,1.09963]
[1743289866968,2.8189,1819.5,1819.4,3.513]
[1743289867471,1.3754,1819.5,1819.4,4.61268]
[1743289867673,1.3754,1819.5,1819.4,6.03588]
[1743289870978,2.5512438,1819.7,1819.6,1.09956]
[1743289871475,1.09956,1819.6,1819.5,2.51708]
[1743289871669,2.50466,1819.6,1819.5,2.51708]
[1743289871876,1.4051,1819.6,1819.5,2.51708]
[1743289872270,2.50466,1819.6,1819.5,2.51708]
[1743289872465,1.4051,1819.6,1819.5,5.72488]
[1743289872671,0.0082438,1819.7,1819.6,1.09956]
[1743289872875,0.0082438,1819.7,1819.6,3.93306]
[1743289875979,0.0082438,1819.7,1819.6,4.48266]
[1743289876779,6.40374176,1820.2,1819.6,4.48266]
[1743289876780,3.65572176,1820.2,1819.6,4.48266]
[1743289876976,1.09925,1820.1,1819.7,10.91784]
[1743289877175,1.09925,1820.1,1819.7,9.46954]
[1743289877678,1.09925,1820.1,1820.0,1.0993]
[1743289877883,1.09925,1820.1,1820.0,4.6123]
[1743289878083,2.45875,1820.1,1820.0,4.6123]
[1743289879182,1.3595,1820.1,1820.0,6.0722]
[1743289879580,0.0082438,1820.2,1820.1,1.09925]
[1743289879883,1.4921438,1820.2,1820.1,2.55915]
[1743289881088,2.5913338,1820.2,1820.1,2.55915]
[1743289882085,2.5913338,1820.2,1820.1,1.4599]
[1743289882385,2.5913338,1820.2,1820.0,4.6205238]
[1743289882584,2.54155,1820.1,1820.0,3.5212438]
[1743289884984,2.54155,1820.1,1820.0,4.6205538]
[1743289885185,2.54155,1820.1,1820.0,6.0049538]
[1743289886582,2.54155,1820.1,1820.0,3.5212438]
[1743289887079,1.4423,1820.1,1820.0,6.0049538]
[1743289887680,1.4423,1820.1,1820.0,6.6897538]
[1743289888285,2.54155,1820.1,1820.0,6.6897538]
[1743289889088,2.54155,1820.1,1820.0,6.0049538]
[1743289889288,1.4423,1820.1,1820.0,6.0049538]
[1743289889980,2.54155,1820.1,1820.0,6.0049538]
[1743289890185,1.4423,1820.1,1820.0,6.0049538]
[1743289896097,1.4423,1820.1,1820.0,6.5545538]
[1743289896297,1.4423,1820.1,1820.0,6.0049538]
[1743289896489,1.4423,1820.1,1820.0,6.5545538]
[1743289897300,26.8816038,1820.8,1820.0,7.9552438]
[1743289897501,1.83729,1820.7,1820.6,1.09895]
[1743289897694,1.83729,1820.7,1820.6,4.60995]
[1743289897695,3.97759,1820.7,1820.6,4.60995]
[1743289897999,3.97759,1820.7,1820.6,3.511]
[1743289901396,2.74739,1820.6,1820.0,0.5578438]
[1743289901594,1.09925,1820.1,1820.0,3.5192438]
[1743289902502,2.58515,1820.1,1820.0,3.5192438]
[1743289916111,1.4859,1820.1,1820.0,4.6185538]
[1743289916305,1.4859,1820.1,1820.0,7.9805538]
[1743289916605,2.58515,1820.1,1820.0,7.9805538]
[1743289917218,1.4859,1820.1,1820.0,7.9805538]
[1743289917512,2.58515,1820.1,1820.0,7.9805538]
[1743289920915,2.58515,1820.1,1820.0,6.8812438]
[1743289921108,2.58515,1820.1,1820.0,3.5192438]
[1743289922216,2.58515,1820.1,1820.0,0.0082438]
[1743289925120,2.58515,1820.1,1820.0,1.1075538]
[1743289925419,2.58515,1820.1,1820.0,2.6144538]
[1743289928119,2.58515,1820.1,1820.0,1.5151438]
[1743289928320,2.58515,1820.1,1820.0,0.0082438]
[1743289928515,1.09949,1819.7,1819.6,4.30733]
[1743289928719,1.09949,1819.7,1819.5,6.82996]
[1743289929025,4.6767,1820.2,1819.8,1.09941]
[1743289929216,2.46759,1819.9,1819.8,1.09941]
[1743289929417,2.46757,1819.9,1819.8,1.09941]
[1743289929919,2.46757,1819.9,1819.8,1.82461]
[1743289930623,1.3682,1819.9,1819.8,1.82461]
[1743289930816,2.46757,1819.9,1819.8,1.82461]
[1743289931013,2.46757,1819.9,1819.8,0.7252]
[1743289931214,1.09943,1819.8,1819.7,2.5979038]
[1743289931415,3.95853,1819.8,1819.7,2.5979038]
[1743289931616,3.95853,1819.8,1819.7,0.0082438]
[1743289931916,3.95853,1819.8,1819.7,3.5252438]
[1743289933116,3.95853,1819.8,1819.7,0.0082438]
[1743289945527,3.95853,1819.8,1819.7,0.6887438]
[1743289945528,2.1506,1819.8,1819.7,0.6887438]
[1743289945825,2.1506,1819.8,1819.7,4.0057338]
[1743289945826,1.4035,1819.8,1819.7,4.0057338]
[1743289947528,1.4786438,1820.0,1819.9,1.09937]
[1743289947734,1.1075538,1820.0,1819.9,1.09937]
[1743289948233,1.1075538,1820.0,1819.9,2.58207]
[1743289948936,0.0082438,1820.0,1819.9,2.58207]
[1743289949434,1.4871438,1820.0,1819.9,2.58207]
[1743289950330,2.5864538,1820.0,1819.9,2.58207]
[1743289950640,1.4871438,1820.0,1819.9,2.58207]
[1743289951038,2.5864538,1820.0,1819.9,2.58207]
[1743289951234,1.4871438,1820.0,1819.9,2.58207]
[1743289957547,2.5864538,1820.0,1819.9,2.58207]
[1743289962352,2.5864538,1820.0,1819.9,1.4827]
[1743289963657,2.5864538,1820.0,1819.9,2.58207]
[1743289964058,1.09937,1819.9,1819.8,0.5496]
[1743289964248,1.09937,1819.9,1819.7,3.5192438]
[1743289964249,1.09943,1819.8,1819.7,3.5192438]
[1743289964660,2.60873,1819.8,1819.7,3.5192438]
[1743289966355,2.60873,1819.8,1819.7,4.6187338]
[1743289966555,1.5093,1819.8,1819.7,4.6187338]
[1743289966757,2.60873,1819.8,1819.7,0.0082438]
[1743289973364,1.5093,1819.8,1819.7,1.1077338]
[1743289973564,1.5093,1819.8,1819.7,2.5027338]
[1743289976166,2.60873,1819.8,1819.7,2.5027338]
[1743289977857,2.60873,1819.8,1819.7,3.0523338]
[1743289978164,2.60873,1819.8,1819.7,2.5027338]
[1743289978464,2.60873,1819.8,1819.7,0.5578438]
[1743289978663,2.60873,1819.8,1819.7,1.6573338]
[1743289978867,2.60873,1819.8,1819.7,1.1077338]
[1743289979063,2.60873,1819.8,1819.7,0.0082438]
[1743289979764,2.60873,1819.8,1819.7,0.5578438]
[1743289980070,2.60873,1819.8,1819.7,0.0082438]
[1743289981168,2.60873,1819.8,1819.7,0.5578438]
[1743289981368,2.60873,1819.8,1819.7,0.0082438]
[1743289982272,2.60873,1819.8,1819.7,0.5578438]
[1743289982568,2.60873,1819.8,1819.7,0.0082438]
[1743289983168,2.60873,1819.8,1819.7,0.5578438]
[1743289983369,2.60873,1819.8,1819.7,0.0082438]
[1743289983768,2.60873,1819.8,1819.7,1.1077338]
[1743289983970,2.60873,1819.8,1819.7,0.0082438]
[1743289984369,2.60873,1819.8,1819.7,1.1077338]
[1743289984667,2.60873,1819.8,1819.7,0.0082438]
[1743289985073,2.60873,1819.8,1819.7,1.1077338]
[1743289985270,2.60873,1819.8,1819.7,0.0082438]
[1743289985573,1.5093,1819.8,1819.7,1.1077338]
[1743289985773,1.5093,1819.8,1819.7,1.8527338]
[1743289985964,1.5093,1819.8,1819.7,3.2328338]
[1743289986567,0.0082438,1820.0,1819.9,1.09937]
[1743289986970,1.4224438,1820.0,1819.9,2.47947]
[1743289989179,1.09943,1819.8,1819.7,0.0082438]
[1743289989778,1.79773,1819.8,1819.7,0.0082438]
[1743289989976,3.21203,1819.8,1819.7,0.0082438]
[1743289990179,2.1126,1819.8,1819.7,1.1077338]
[1743289990376,2.1126,1819.8,1819.7,2.5831338]
[1743289991076,3.21203,1819.8,1819.7,2.5831338]
[1743289991580,2.1126,1819.8,1819.7,1.1077338]
[1743289992276,2.1126,1819.8,1819.7,2.4767338]
[1743289994673,3.21203,1819.8,1819.7,2.4767338]
[1743289994868,3.21203,1819.8,1819.7,1.3772438]
[1743289995074,3.21203,1819.8,1819.7,2.4767338]
[1743289995274,3.21203,1819.8,1819.7,1.1077338]
[1743289995573,3.21203,1819.8,1819.7,0.0082438]
[1743289997083,3.21203,1819.8,1819.7,1.1077338]
[1743289997381,3.21203,1819.8,1819.7,0.0082438]
[1743290010383,3.21203,1819.8,1819.7,1.1077338]
[1743290010588,3.21203,1819.8,1819.7,0.0082438]
[1743290010782,3.21203,1819.8,1819.7,1.1077338]
[1743290010985,3.21203,1819.8,1819.7,0.0082438]
[1743290011186,3.21203,1819.8,1819.7,1.1077338]
[1743290011387,3.21203,1819.8,1819.7,3.2965338]
[1743290016691,0.0082438,1820.0,1819.9,1.09937]
[1743290017090,1.09937,1819.9,1819.8,3.31519]
[1743290017489,1.09937,1819.9,1819.8,6.82719]
[1743290017696,1.1075838,1820.0,1819.9,1.09937]
[1743290017893,2.5392838,1820.0,1819.9,2.60087]
[1743290018892,2.5392838,1820.0,1819.9,1.5015]
[1743290019095,2.5392838,1820.0,1819.9,2.60087]
[1743290019293,2.5392838,1820.0,1819.9,1.5015]
[1743290019896,1.4399438,1820.0,1819.9,2.60087]
[1743290020402,2.5392538,1820.0,1819.9,2.60087]
[1743290020805,1.4399438,1820.0,1819.9,2.60087]
[1743290022206,2.5392538,1820.0,1819.9,2.60087]
[1743290023203,1.4399438,1820.0,1819.9,2.60087]
[1743290023404,0.0082438,1820.0,1819.9,2.60087]
[1743290023703,0.0082438,1820.0,1819.9,5.80867]
[1743290034121,0.0082438,1820.0,1819.9,2.60087]
[1743290036021,1.4490438,1820.0,1819.9,3.15047]
[1743290036221,1.4490438,1820.0,1819.9,2.60087]
[1743290036420,1.4490438,1820.0,1819.9,3.15047]
[1743290038824,1.4490438,1820.0,1819.9,6.35827]
[1743290044123,1.4490438,1820.0,1819.9,7.81717]
[1743290046129,1.4490438,1820.0,1819.9,4.60937]
[1743290050131,1.4490438,1820.0,1819.9,7.81717]
[1743290050630,1.4490438,1820.0,1819.9,4.60937]
[1743290054333,1.4490438,1820.0,1819.9,6.09927]
[1743290056536,1.4490438,1820.0,1819.9,6.64887]
[1743290059141,1.4490438,1820.0,1819.9,9.85667]
[1743290059937,1.4490438,1820.0,1819.9,8.36677]
[1743290060143,1.4490438,1820.0,1819.9,7.81717]
[1743290060439,2.5483538,1820.0,1819.9,7.81717]
[1743290060636,1.4490438,1820.0,1819.9,7.81717]
[1743290062141,1.4490438,1820.0,1819.9,8.36677]
[1743290062342,2.5483538,1820.0,1819.9,7.2674]
[1743290062540,2.5483538,1820.0,1819.9,3.7574]
[1743290062838,1.0996,1819.6,1819.5,0.5496]
[1743290063144,1.09956,1819.6,1819.5,0.5496]
[1743290063744,2.46754,1819.7,1819.5,1.64922]
[1743290064243,1.4093,1819.6,1819.5,1.64922]
[1743290066044,2.50886,1819.6,1819.5,0.5496]
[1743290066841,2.50886,1819.6,1819.4,9.2959838]
[1743290067041,2.8128,1819.5,1819.4,9.2959838]
[1743290067248,2.8128,1819.5,1819.4,9.8463838]
[1743290068244,2.8128,1819.5,1819.4,8.3760838]
[1743290068645,3.91242,1819.5,1819.4,4.6178838]
[1743290068851,3.91242,1819.5,1819.4,0.0082438]
[1743290069042,1.09981,1819.2,1819.0,60.5408]
[1743290069352,1.4028,1819.1,1819.0,59.9904]
[1743290069649,2.8931,1819.1,1819.0,59.9904]
[1743290073455,2.177,1819.1,1819.0,56.7826]
[1743290073748,2.177,1819.1,1819.0,59.9904]
[1743290076147,2.177,1819.1,1819.0,60.5408]
[1743290076552,2.177,1819.1,1819.0,59.9904]
[1743290077055,2.177,1819.1,1819.0,60.5408]
[1743290077242,2.177,1819.1,1819.0,59.9904]
[1743290077446,2.177,1819.1,1819.0,60.5408]
[1743290077643,2.177,1819.1,1819.0,59.9904]
[1743290077849,2.177,1819.1,1819.0,60.5408]
[1743290078053,2.177,1819.1,1819.0,59.9904]
[1743290078650,2.177,1819.1,1819.0,60.5408]
[1743290078850,2.177,1819.1,1819.0,59.9904]
[1743290079157,2.177,1819.1,1819.0,60.5408]
[1743290079656,2.177,1819.1,1819.0,59.9904]
[1743290079853,2.177,1819.1,1819.0,60.5408]
[1743290080248,2.177,1819.1,1819.0,56.7826]
[1743290080444,2.177,1819.1,1819.0,57.333]
[1743290080654,2.177,1819.1,1819.0,59.9904]
[1743290081050,2.177,1819.1,1819.0,60.5408]
[1743290081354,2.177,1819.1,1819.0,59.9904]
[1743290081555,2.177,1819.1,1819.0,56.7826]
[1743290081753,2.177,1819.1,1819.0,59.9904]
[1743290083046,2.177,1819.1,1819.0,60.5408]
[1743290083243,2.177,1819.1,1819.0,56.7826]
[1743290083552,2.177,1819.1,1819.0,59.9904]
[1743290083756,2.177,1819.1,1819.0,60.5408]
[1743290084246,2.177,1819.1,1819.0,59.9904]
[1743290084452,2.177,1819.1,1819.0,60.5408]
[1743290084857,2.177,1819.1,1819.0,59.9904]
[1743290085158,2.177,1819.1,1819.0,60.5408]
[1743290085352,2.177,1819.1,1819.0,59.9904]
[1743290087157,2.177,1819.1,1819.0,60.5408]
[1743290087760,2.177,1819.1,1819.0,59.9904]
[1743290088260,2.177,1819.1,1819.0,60.5408]
[1743290088460,2.177,1819.1,1819.0,59.9904]
[1743290088850,2.177,1819.1,1819.0,60.5408]
[1743290089264,3.2078,1819.6,1819.4,1.09967]
[1743290089459,1.482,1819.5,1819.4,1.09967]
[1743290090150,2.58162,1819.5,1819.3,4.61069]
[1743290090355,1.482,1819.5,1819.4,1.09968]
[1743290090859,2.9149,1819.5,1819.4,2.46968]
[1743290094568,2.1746,1819.5,1819.4,2.46968]
[1743290098365,3.27422,1819.5,1819.4,1.37]
[1743290098569,3.27422,1819.5,1819.3,5.0081]
[1743290098765,3.27422,1819.5,1819.3,6.10784]
[1743290098766,1.372,1819.4,1819.3,6.10784]
[1743290100164,2.47171,1819.4,1819.2,5.54056]
[1743290100368,2.47171,1819.4,1819.2,3.2078]
[1743290100369,2.1173,1819.4,1819.2,3.2078]
[1743290100670,1.372,1819.3,1819.2,4.30758]
[1743290101671,1.372,1819.3,1819.2,5.75048]
[1743290101961,1.372,1819.3,1819.2,6.45028]
[1743290105372,2.59124,1819.5,1819.4,1.09968]
[1743290105373,1.4916,1819.5,1819.4,1.09968]
[1743290105669,1.09946,1819.8,1819.6,1.09954]
[1743290105972,2.53446,1819.8,1819.6,1.09954]
[1743290106465,2.53446,1819.8,1819.6,1.82594]
[1743290106673,1.4402,1819.7,1819.6,3.22464]
[1743290107567,1.4402,1819.7,1819.6,6.43244]
[1743290108773,0.681,1819.9,1819.8,1.09943]
[1743290108977,2.0847,1819.9,1819.8,4.61043]
[1743290112172,3.18407,1819.9,1819.8,3.511]
[1743290112374,2.0847,1819.9,1819.8,3.511]
[1743290112865,2.0847,1819.9,1819.8,4.61043]
[1743290118074,2.0847,1819.9,1819.8,1.09943]
[1743290118276,2.0847,1819.9,1819.7,3.2078]
[1743290118579,1.4241,1819.8,1819.7,4.30727]
[1743290119882,1.4241,1819.8,1819.7,5.72337]
[1743290122279,1.4250438,1820.0,1819.9,1.09937]
[1743290122280,0.0082438,1820.0,1819.9,1.09937]
[1743290122484,0.0082438,1820.0,1819.9,7.81717]
[1743290122687,0.0082438,1820.0,1819.9,10.00487]
[1743290123386,0.7511,1820.3,1820.2,1.09919]
[1743290123580,0.7511,1820.3,1820.2,7.81699]
[1743290124173,0.7511,1820.3,1820.2,8.57059]
[1743290124376,0.7511,1820.3,1820.2,10.00469]
[1743290125281,1.85023,1820.3,1820.2,3.2078]
[1743290125584,1.09919,1820.2,1820.1,0.0082438]
[1743290126480,2.59029,1820.2,1820.1,0.0082438]
[1743290135387,1.4911,1820.2,1820.1,1.1074938]
[1743290135994,1.4911,1820.2,1820.1,2.5351938]
[1743290136391,1.4911,1820.2,1820.1,3.0847938]
[1743290139303,1.4911,1820.2,1820.1,6.2925938]
[1743290140905,0.7511,1820.3,1820.2,1.09919]
[1743290141202,0.0082438,1820.4,1820.3,1.09913]
[1743290141398,1.4867438,1820.4,1820.3,2.52783]
[1743290141600,0.0082438,1820.4,1820.3,3.98123]
[1743290142795,0.0082438,1820.4,1820.3,7.18903]
[1743290143802,0.0082438,1820.4,1820.3,10.69703]
[1743290149006,0.0082438,1820.4,1820.3,7.18903]
[1743290149206,0.0082438,1820.4,1820.3,10.00303]
[1743290156105,0.0082438,1820.4,1820.3,10.55263]
[1743290156907,0.0082438,1820.4,1820.3,7.34483]
[1743290157107,0.0082438,1820.4,1820.3,10.55263]
[1743290160510,1.4785,1820.5,1820.4,1.09907]
[1743290160709,1.4785,1820.5,1820.4,2.50937]
[1743290169817,1.4785,1820.5,1820.4,5.71717]
[1743290170324,0.0082438,1820.6,1820.5,1.09901]
[1743290170523,0.0082438,1820.6,1820.5,3.31081]
[1743290170818,0.0082438,1820.6,1820.5,12.93582491]
[1743290172425,0.0082438,1820.6,1820.5,13.34182835]
[1743290175822,23.6738038,1821.8,1820.5,18.60937922]
[1743290176027,23.6738038,1821.8,1821.1,1.0986]
[1743290176028,2.8073,1821.4,1821.1,1.0986]
[1743290176225,1.3987,1821.3,1821.2,3.507]
[1743290176421,1.3987,1821.3,1821.2,4.60559]
[1743290176927,1.3987,1821.3,1821.2,3.507]
[1743290177128,1.3987,1821.3,1821.2,4.60559]
[1743290180928,1.3987,1821.3,1821.1,5.3880438]
[1743290180929,1.3987,1821.3,1821.1,4.3146438]
[1743290181129,1.3987,1821.3,1821.2,3.506]
[1743290181626,1.3987,1821.3,1821.2,4.60459]
[1743290181926,2.74652,1821.2,1820.6,0.5496]
[1743290182131,1.09895,1820.6,1820.5,3.506]
[1743290182631,4.05413,1820.7,1820.5,4.60501]
[1743290182832,1.466,1820.6,1820.5,4.60501]
[1743290183829,5.77275,1820.6,1820.4,1.1072938]
[1743290184325,1.3646,1820.5,1820.4,1.6568938]
[1743290184732,1.3646,1820.5,1820.4,1.1072938]
[1743290184933,2.46361,1820.5,1820.4,0.0082438]
[1743290185621,1.3646,1820.5,1820.4,0.0082438]
[1743290186035,2.46361,1820.5,1820.4,0.0082438]
[1743290191527,1.3646,1820.5,1820.4,0.0082438]
[1743290191727,1.3646,1820.5,1820.4,1.1073138]
[1743290192137,2.46361,1820.5,1820.4,0.0082438]
[1743290194330,1.3646,1820.5,1820.0,1.2973]
[1743290194535,1.09925,1820.1,1819.9,3.15725]
[1743290194734,2.0871,1820.0,1819.8,1.09943]
[1743290194935,1.09937,1819.9,1819.8,3.507]
[1743290195136,2.45877,1819.9,1819.8,3.507]
[1743290195334,1.3594,1819.9,1819.8,4.60643]
[1743290197232,3.2078,1820.1,1820.0,1.09931]
[1743290198035,3.2078,1820.1,1820.0,1.82651]
[1743290199029,1.4922,1820.2,1820.0,1.82651]
[1743290199230,1.4922,1820.2,1820.0,0.7272]
[1743290199433,1.4922,1820.2,1819.9,1.09935]
[1743290199634,2.59144,1820.2,1819.9,1.09935]
[1743290200030,1.4922,1820.1,1819.9,1.09935]
[1743290200242,1.4922,1820.1,1820.0,1.09931]
[1743290204839,3.2078,1820.3,1820.2,1.09919]
[1743290205137,0.0082438,1820.7,1820.2,4.60619]
[1743290205344,0.0082438,1820.7,1820.6,1.09895]
[1743290205738,1.4286438,1820.7,1820.6,1.09895]
[1743290206138,1.4286438,1820.7,1820.6,2.59625]
[1743290206340,1.4286438,1820.7,1820.6,1.4973]
[1743290207347,1.4286438,1820.7,1820.6,2.59625]